Department family,Entity,Date,Expense type,Expense area,Supplier,Transaction number,Amount
Department of Health,Leicestershire Partnership NHS Trust,01/02/23,Printing Costs,Universal Child Health Records,HARLOW PRINTING LTD,1111548,51044.54
Department of Health,Leicestershire Partnership NHS Trust,01/02/23,Nurse - Band 6 -Agency,AMH - Central Access Point,HCL NURSING,HNSI0001244,2312.99
Department of Health,Leicestershire Partnership NHS Trust,01/02/23,Nurse - Band 7 - Agency,Adult County- East Leicester CMHT,HCL NURSING,HNSI0001244,1638.31
Department of Health,Leicestershire Partnership NHS Trust,01/02/23,NURSE - BAND 2 - AGENCY,Agnes Unit,HCL NURSING,HNSI0001244,25570.21
Department of Health,Leicestershire Partnership NHS Trust,01/02/23,NURSE - BAND 5 - AGENCY,Agnes Unit,HCL NURSING,HNSI0001244,32130.35
Department of Health,Leicestershire Partnership NHS Trust,01/02/23,NURSE - BAND 2 - AGENCY,Ashby Ward (Bradgate Unit),HCL NURSING,HNSI0001244,1937.57
Department of Health,Leicestershire Partnership NHS Trust,01/02/23,NURSE - BAND 5 - AGENCY,Ashby Ward (Bradgate Unit),HCL NURSING,HNSI0001244,6851.90
Department of Health,Leicestershire Partnership NHS Trust,01/02/23,NURSE - BAND 2 - AGENCY,Aston Ward Bradgate Unit (Prev Welford),HCL NURSING,HNSI0001244,1678.20
Department of Health,Leicestershire Partnership NHS Trust,01/02/23,NURSE - BAND 5 - AGENCY,Aston Ward Bradgate Unit (Prev Welford),HCL NURSING,HNSI0001244,3119.86
Department of Health,Leicestershire Partnership NHS Trust,01/02/23,NURSE - BAND 2 - AGENCY,Beaumont Ward - Bradgate Unit,HCL NURSING,HNSI0001244,3750.32
Department of Health,Leicestershire Partnership NHS Trust,01/02/23,NURSE - BAND 5 - AGENCY,Beaumont Ward - Bradgate Unit,HCL NURSING,HNSI0001244,13255.36
Department of Health,Leicestershire Partnership NHS Trust,01/02/23,NURSE - BAND 2 - AGENCY,Belvoir Psychiatric Intensive Care Unit,HCL NURSING,HNSI0001244,8359.49
Department of Health,Leicestershire Partnership NHS Trust,01/02/23,NURSE - BAND 5 - AGENCY,Belvoir Psychiatric Intensive Care Unit,HCL NURSING,HNSI0001244,5252.87
Department of Health,Leicestershire Partnership NHS Trust,01/02/23,NURSE - BAND 2 - AGENCY,Bosworth Ward - Bradgate Unit,HCL NURSING,HNSI0001244,2245.81
Department of Health,Leicestershire Partnership NHS Trust,01/02/23,NURSE - BAND 5 - AGENCY,Bosworth Ward - Bradgate Unit,HCL NURSING,HNSI0001244,5181.68
Department of Health,Leicestershire Partnership NHS Trust,01/02/23,NURSE - BAND 2 - AGENCY,Cedar (Willows),HCL NURSING,HNSI0001244,637.33
Department of Health,Leicestershire Partnership NHS Trust,01/02/23,NURSE - BAND 5 - AGENCY,Cedar (Willows),HCL NURSING,HNSI0001244,2600.94
Department of Health,Leicestershire Partnership NHS Trust,01/02/23,Nurse - Band 6 -Agency,City West CMHT MHSOP,HCL NURSING,HNSI0001244,1255.50
Department of Health,Leicestershire Partnership NHS Trust,01/02/23,NURSE - BAND 2 - AGENCY,Coleman Ward,HCL NURSING,HNSI0001244,2418.36
Department of Health,Leicestershire Partnership NHS Trust,01/02/23,NURSE - BAND 5 - AGENCY,Coleman Ward,HCL NURSING,HNSI0001244,4373.42
Department of Health,Leicestershire Partnership NHS Trust,01/02/23,NURSE - BAND 2 - AGENCY,Griffin Ward (HPC),HCL NURSING,HNSI0001244,2762.64
Department of Health,Leicestershire Partnership NHS Trust,01/02/23,NURSE - BAND 5 - AGENCY,Griffin Ward (HPC),HCL NURSING,HNSI0001244,7545.76
Department of Health,Leicestershire Partnership NHS Trust,01/02/23,NURSE - BAND 2 - AGENCY,Gwendolen Ward,HCL NURSING,HNSI0001244,1481.47
Department of Health,Leicestershire Partnership NHS Trust,01/02/23,NURSE - BAND 5 - AGENCY,Gwendolen Ward,HCL NURSING,HNSI0001244,3240.26
Department of Health,Leicestershire Partnership NHS Trust,01/02/23,NURSE - BAND 2 - AGENCY,Heather Ward,HCL NURSING,HNSI0001244,994.99
Department of Health,Leicestershire Partnership NHS Trust,01/02/23,NURSE - BAND 5 - AGENCY,Heather Ward,HCL NURSING,HNSI0001244,5618.44
Department of Health,Leicestershire Partnership NHS Trust,01/02/23,NURSE - BAND 2 - AGENCY,Kirby Ward,HCL NURSING,HNSI0001244,2357.24
Department of Health,Leicestershire Partnership NHS Trust,01/02/23,NURSE - BAND 5 - AGENCY,Kirby Ward,HCL NURSING,HNSI0001244,1066.57
Department of Health,Leicestershire Partnership NHS Trust,01/02/23,NURSE - BAND 2 - AGENCY,Maple Ward,HCL NURSING,HNSI0001244,1179.63
Department of Health,Leicestershire Partnership NHS Trust,01/02/23,Nurse - Band 6 -Agency,Mental Health Liaison Team,HCL NURSING,HNSI0001244,1773.46
Department of Health,Leicestershire Partnership NHS Trust,01/02/23,NURSE - BAND 2 - AGENCY,Mill Lodge,HCL NURSING,HNSI0001244,876.65
Department of Health,Leicestershire Partnership NHS Trust,01/02/23,NURSE - BAND 5 - AGENCY,Mill Lodge,HCL NURSING,HNSI0001244,1040.20
Department of Health,Leicestershire Partnership NHS Trust,01/02/23,NURSE - BAND 2 - AGENCY,Phoenix Ward (HPC),HCL NURSING,HNSI0001244,1963.06
Department of Health,Leicestershire Partnership NHS Trust,01/02/23,NURSE - BAND 5 - AGENCY,Phoenix Ward (HPC),HCL NURSING,HNSI0001244,9397.84
Department of Health,Leicestershire Partnership NHS Trust,01/02/23,NURSE - BAND 2 - AGENCY,Place Of Safety Assessment Unit,HCL NURSING,HNSI0001244,1075.57
Department of Health,Leicestershire Partnership NHS Trust,01/02/23,NURSE - BAND 5 - AGENCY,Place Of Safety Assessment Unit,HCL NURSING,HNSI0001244,4373.16
Department of Health,Leicestershire Partnership NHS Trust,01/02/23,NURSE - BAND 2 - AGENCY,Stewart House,HCL NURSING,HNSI0001244,231.67
Department of Health,Leicestershire Partnership NHS Trust,01/02/23,NURSE - BAND 5 - AGENCY,Stewart House,HCL NURSING,HNSI0001244,571.85
Department of Health,Leicestershire Partnership NHS Trust,01/02/23,NURSE - BAND 2 - AGENCY,Sycamore (Willows),HCL NURSING,HNSI0001244,1452.22
Department of Health,Leicestershire Partnership NHS Trust,01/02/23,NURSE - BAND 5 - AGENCY,Sycamore (Willows),HCL NURSING,HNSI0001244,4151.59
Department of Health,Leicestershire Partnership NHS Trust,01/02/23,NURSE - BAND 2 - AGENCY,Thornton Ward - Bradgate Unit,HCL NURSING,HNSI0001244,475.33
Department of Health,Leicestershire Partnership NHS Trust,01/02/23,NURSE - BAND 5 - AGENCY,Thornton Ward - Bradgate Unit,HCL NURSING,HNSI0001244,2565.94
Department of Health,Leicestershire Partnership NHS Trust,01/02/23,Nurse - Band 6 -Agency,CAMHS HUB / CAP,HCL WORKFORCE SOLUTIONS,HWSI0001547,6562.85
Department of Health,Leicestershire Partnership NHS Trust,01/02/23,Nurse - Band 6 -Agency,CAMHS Waiting List Monies,HCL WORKFORCE SOLUTIONS,HWSI0001547,20149.67
Department of Health,Leicestershire Partnership NHS Trust,01/02/23,Nurse - Band 6 -Agency,Crisis Response and Home Treatment,HCL WORKFORCE SOLUTIONS,HWSI0001547,1564.80
Department of Health,Leicestershire Partnership NHS Trust,01/02/23,NURSE - BAND 2 - AGENCY,CAMHS Inpatient Service,HCL NURSING,HNSI0001246,20925.62
Department of Health,Leicestershire Partnership NHS Trust,01/02/23,NURSE - BAND 5 - AGENCY,CAMHS Inpatient Service,HCL NURSING,HNSI0001246,6500.80
Department of Health,Leicestershire Partnership NHS Trust,01/02/23,NURSE - BAND 2 - AGENCY,CAMHS Learning Disabilities and Outreach Team,HCL NURSING,HNSI0001246,1824.26
Department of Health,Leicestershire Partnership NHS Trust,01/02/23,Nurse - Band 6 -Agency,CAMHS Waiting List Monies,HCL NURSING,HNSI0001246,7473.52
Department of Health,Leicestershire Partnership NHS Trust,01/02/23,NURSE - BAND 2 - AGENCY,Welford Ward (Prev Langley),HCL NURSING,HNSI0001246,2957.83
Department of Health,Leicestershire Partnership NHS Trust,01/02/23,NURSE - BAND 5 - AGENCY,Welford Ward (Prev Langley),HCL NURSING,HNSI0001246,2230.95
Department of Health,Leicestershire Partnership NHS Trust,02/02/23,Services / Recharges from NHS Trusts,Adult Eating Disorder Collaborative,NORTHAMPTONSHIRE HC NHS FT (RP1),5153359,100000.00
Department of Health,Leicestershire Partnership NHS Trust,02/02/23,Rent,"St Peters Health Center (Part 1st and 2nd floors) (P66, LPT)",LEICESTER LIFT CO,LEP1-SI1173,30082.84
Department of Health,Leicestershire Partnership NHS Trust,02/02/23,Payroll Deductions -Salary Sacrifice Cars Scheme,Balance Sheet Collection,TUSKER,70415,44063.01
Department of Health,Leicestershire Partnership NHS Trust,02/02/23,Unitary Payment,"The Agnes Unit (AKA Assessment and Treatment Centre) (P85, LPT)",ARDEN PARTNERSHIP (LEICESTER),SI0114,131271.97
Department of Health,Leicestershire Partnership NHS Trust,03/02/23,WIP Project Not in BS - Buildings excl Dwellings,Work in Progress,TILBURY DOUGLAS CONSTRUCTION LTD,23020014,132037.75
Department of Health,Leicestershire Partnership NHS Trust,03/02/23,WIP Project Not in BS - Buildings excl Dwellings,Work in Progress,TILBURY DOUGLAS CONSTRUCTION LTD,23020003,34755.79
Department of Health,Leicestershire Partnership NHS Trust,03/02/23,WIP Project Not in BS - Buildings excl Dwellings,Work in Progress,TILBURY DOUGLAS CONSTRUCTION LTD,23020021,231211.39
Department of Health,Leicestershire Partnership NHS Trust,03/02/23,WIP Project Not in BS - Buildings excl Dwellings,Work in Progress,TILBURY DOUGLAS CONSTRUCTION LTD,23020022,289726.88
Department of Health,Leicestershire Partnership NHS Trust,03/02/23,Healthcare Services / Recharges from Non-NHS Bodies,Adult Eating Disorder Collaborative,PRIORY GROUP,301JAN23LECAEDA,59762.78
Department of Health,Leicestershire Partnership NHS Trust,05/02/23,External Consultancy Fees,Estates & Facilities Central,GPT CONSULTING LLP,19LEIP028801,68544.00
Department of Health,Leicestershire Partnership NHS Trust,05/02/23,HR / Payroll Services,HR Employment Services,LINCOLNSHIRE PART NHSFT(RP7),L0000645,34400.00
Department of Health,Leicestershire Partnership NHS Trust,06/02/23,Crs_NHS_LT1y -Resus Inventory Supplied.,Balance Sheet Collection,SUPPLY CHAIN CO LTD,1123248917,33580.50
Department of Health,Leicestershire Partnership NHS Trust,06/02/23,Course / Training Expenses,CAMHS Neurodevelopmental,UNI HOS BIRM FT,OH/E003299,26000.00
Department of Health,Leicestershire Partnership NHS Trust,07/02/23,NURSE - BAND 2 - AGENCY,Beechwood Ward,HCL NURSING,HNSI0001249,6791.56
Department of Health,Leicestershire Partnership NHS Trust,07/02/23,NURSE - BAND 5 - AGENCY,Beechwood Ward,HCL NURSING,HNSI0001249,4320.10
Department of Health,Leicestershire Partnership NHS Trust,07/02/23,NURSE - BAND 2 - AGENCY,CHS Surge Ward,HCL NURSING,HNSI0001249,12007.70
Department of Health,Leicestershire Partnership NHS Trust,07/02/23,NURSE - BAND 5 - AGENCY,City Planned Care - East,HCL NURSING,HNSI0001249,8524.50
Department of Health,Leicestershire Partnership NHS Trust,07/02/23,NURSE - BAND 5 - AGENCY,City Planned Care - West,HCL NURSING,HNSI0001249,15038.43
Department of Health,Leicestershire Partnership NHS Trust,07/02/23,NURSE - BAND 2 - AGENCY,Clarendon Ward,HCL NURSING,HNSI0001249,6735.45
Department of Health,Leicestershire Partnership NHS Trust,07/02/23,NURSE - BAND 5 - AGENCY,Clarendon Ward,HCL NURSING,HNSI0001249,2560.11
Department of Health,Leicestershire Partnership NHS Trust,07/02/23,NURSE - BAND 2 - AGENCY,Coalville Snibston Ward,HCL NURSING,HNSI0001249,2573.94
Department of Health,Leicestershire Partnership NHS Trust,07/02/23,NURSE - BAND 5 - AGENCY,Coalville Snibston Ward,HCL NURSING,HNSI0001249,5958.96
Department of Health,Leicestershire Partnership NHS Trust,07/02/23,NURSE - BAND 2 - AGENCY,Coalville Ward 2,HCL NURSING,HNSI0001249,4802.99
Department of Health,Leicestershire Partnership NHS Trust,07/02/23,NURSE - BAND 5 - AGENCY,Coalville Ward 2,HCL NURSING,HNSI0001249,4096.80
Department of Health,Leicestershire Partnership NHS Trust,07/02/23,NURSE - BAND 2 - AGENCY,Dalgliesh Ward,HCL NURSING,HNSI0001249,2739.52
Department of Health,Leicestershire Partnership NHS Trust,07/02/23,NURSE - BAND 5 - AGENCY,Dalgliesh Ward,HCL NURSING,HNSI0001249,4560.03
Department of Health,Leicestershire Partnership NHS Trust,07/02/23,NURSE - BAND 5 - AGENCY,"East Planned Care - Oadby,Wigston & Harborough",HCL NURSING,HNSI0001249,951.29
Department of Health,Leicestershire Partnership NHS Trust,07/02/23,NURSE - BAND 2 - AGENCY,H&B Comm Hosp East Ward,HCL NURSING,HNSI0001249,10667.41
Department of Health,Leicestershire Partnership NHS Trust,07/02/23,NURSE - BAND 5 - AGENCY,H&B Comm Hosp East Ward,HCL NURSING,HNSI0001249,11252.15
Department of Health,Leicestershire Partnership NHS Trust,07/02/23,NURSE - BAND 2 - AGENCY,H&B Comm Hosp North Ward,HCL NURSING,HNSI0001249,7082.57
Department of Health,Leicestershire Partnership NHS Trust,07/02/23,NURSE - BAND 5 - AGENCY,H&B Comm Hosp North Ward,HCL NURSING,HNSI0001249,3867.99
Department of Health,Leicestershire Partnership NHS Trust,07/02/23,NURSE - BAND 2 - AGENCY,Lough Swithland Ward,HCL NURSING,HNSI0001249,5764.39
Department of Health,Leicestershire Partnership NHS Trust,07/02/23,NURSE - BAND 2 - AGENCY,Rutland Ward Nursing,HCL NURSING,HNSI0001249,5688.76
Department of Health,Leicestershire Partnership NHS Trust,07/02/23,NURSE - BAND 5 - AGENCY,Rutland Ward Nursing,HCL NURSING,HNSI0001249,5747.80
Department of Health,Leicestershire Partnership NHS Trust,07/02/23,NURSE - BAND 2 - AGENCY,St Lukes Stroke Ward,HCL NURSING,HNSI0001249,2544.30
Department of Health,Leicestershire Partnership NHS Trust,07/02/23,NURSE - BAND 5 - AGENCY,St Lukes Stroke Ward,HCL NURSING,HNSI0001249,390.15
Department of Health,Leicestershire Partnership NHS Trust,07/02/23,NURSE - BAND 2 - AGENCY,St Lukes Ward 3,HCL NURSING,HNSI0001249,2509.43
Department of Health,Leicestershire Partnership NHS Trust,07/02/23,NURSE - BAND 5 - AGENCY,St Lukes Ward 3,HCL NURSING,HNSI0001249,571.85
Department of Health,Leicestershire Partnership NHS Trust,07/02/23,Network Costs - WAN Maint,HIS Infrastructure,VIRGIN MEDIA BUSINESS,262421-205,36115.31
Department of Health,Leicestershire Partnership NHS Trust,07/02/23,Drugs,Adult City Drugs,POLAR SPEED THERMOLOGISTICS,0001090593,11719.54
Department of Health,Leicestershire Partnership NHS Trust,07/02/23,Drugs,Adult County Drugs,POLAR SPEED THERMOLOGISTICS,0001090593,17579.32
Department of Health,Leicestershire Partnership NHS Trust,07/02/23,External Data Processing / Storage,Records & information Governance,L&R STORAGE,CV387EXITCOSTS,107095.80
Department of Health,Leicestershire Partnership NHS Trust,07/02/23,Other Non-Medical Supplies & Services,Records & information Governance,L&R STORAGE,CV394,90635.88
Department of Health,Leicestershire Partnership NHS Trust,08/02/23,Payroll Deductions -Home Electronics 76 Jan 23,Balance Sheet Collection,SME HCI LTD,143661,24175.30
Department of Health,Leicestershire Partnership NHS Trust,10/02/23,GP IT Expenditure,Area Team,CCS MEDIA,4748734,35936.64
Department of Health,Leicestershire Partnership NHS Trust,10/02/23,Nurse - Band 6 -Agency,AMH - Central Access Point,HCL NURSING,HNSI0001252,1151.86
Department of Health,Leicestershire Partnership NHS Trust,10/02/23,Nurse - Band 7 - Agency,Adult County South Leicestershire CMHT,HCL NURSING,HNSI0001252,1365.26
Department of Health,Leicestershire Partnership NHS Trust,10/02/23,NURSE - BAND 2 - AGENCY,Agnes Unit,HCL NURSING,HNSI0001252,18020.18
Department of Health,Leicestershire Partnership NHS Trust,10/02/23,NURSE - BAND 5 - AGENCY,Agnes Unit,HCL NURSING,HNSI0001252,27833.27
Department of Health,Leicestershire Partnership NHS Trust,10/02/23,NURSE - BAND 2 - AGENCY,Ashby Ward (Bradgate Unit),HCL NURSING,HNSI0001252,5914.22
Department of Health,Leicestershire Partnership NHS Trust,10/02/23,NURSE - BAND 5 - AGENCY,Ashby Ward (Bradgate Unit),HCL NURSING,HNSI0001252,10138.51
Department of Health,Leicestershire Partnership NHS Trust,10/02/23,NURSE - BAND 2 - AGENCY,Aston Ward Bradgate Unit (Prev Welford),HCL NURSING,HNSI0001252,5155.17
Department of Health,Leicestershire Partnership NHS Trust,10/02/23,NURSE - BAND 5 - AGENCY,Aston Ward Bradgate Unit (Prev Welford),HCL NURSING,HNSI0001252,3191.56
Department of Health,Leicestershire Partnership NHS Trust,10/02/23,NURSE - BAND 2 - AGENCY,Beaumont Ward - Bradgate Unit,HCL NURSING,HNSI0001252,1339.52
Department of Health,Leicestershire Partnership NHS Trust,10/02/23,NURSE - BAND 5 - AGENCY,Beaumont Ward - Bradgate Unit,HCL NURSING,HNSI0001252,11131.02
Department of Health,Leicestershire Partnership NHS Trust,10/02/23,NURSE - BAND 2 - AGENCY,Belvoir Psychiatric Intensive Care Unit,HCL NURSING,HNSI0001252,7754.77
Department of Health,Leicestershire Partnership NHS Trust,10/02/23,NURSE - BAND 5 - AGENCY,Belvoir Psychiatric Intensive Care Unit,HCL NURSING,HNSI0001252,4730.84
Department of Health,Leicestershire Partnership NHS Trust,10/02/23,NURSE - BAND 2 - AGENCY,Bosworth Ward - Bradgate Unit,HCL NURSING,HNSI0001252,8557.59
Department of Health,Leicestershire Partnership NHS Trust,10/02/23,NURSE - BAND 2 - AGENCY,Cedar (Willows),HCL NURSING,HNSI0001252,681.17
Department of Health,Leicestershire Partnership NHS Trust,10/02/23,Nurse - Band 6 -Agency,City West CMHT MHSOP,HCL NURSING,HNSI0001252,1046.25
Department of Health,Leicestershire Partnership NHS Trust,10/02/23,NURSE - BAND 2 - AGENCY,Coleman Ward,HCL NURSING,HNSI0001252,2440.45
Department of Health,Leicestershire Partnership NHS Trust,10/02/23,NURSE - BAND 5 - AGENCY,Coleman Ward,HCL NURSING,HNSI0001252,2319.65
Department of Health,Leicestershire Partnership NHS Trust,10/02/23,NURSE - BAND 2 - AGENCY,Griffin Ward (HPC),HCL NURSING,HNSI0001252,5896.54
Department of Health,Leicestershire Partnership NHS Trust,10/02/23,NURSE - BAND 5 - AGENCY,Griffin Ward (HPC),HCL NURSING,HNSI0001252,6146.07
Department of Health,Leicestershire Partnership NHS Trust,10/02/23,NURSE - BAND 2 - AGENCY,Gwendolen Ward,HCL NURSING,HNSI0001252,624.10
Department of Health,Leicestershire Partnership NHS Trust,10/02/23,NURSE - BAND 5 - AGENCY,Gwendolen Ward,HCL NURSING,HNSI0001252,3130.94
Department of Health,Leicestershire Partnership NHS Trust,10/02/23,NURSE - BAND 2 - AGENCY,Heather Ward,HCL NURSING,HNSI0001252,835.77
Department of Health,Leicestershire Partnership NHS Trust,10/02/23,NURSE - BAND 5 - AGENCY,Heather Ward,HCL NURSING,HNSI0001252,3316.55
Department of Health,Leicestershire Partnership NHS Trust,10/02/23,NURSE - BAND 2 - AGENCY,Kirby Ward,HCL NURSING,HNSI0001252,1178.40
Department of Health,Leicestershire Partnership NHS Trust,10/02/23,NURSE - BAND 5 - AGENCY,Kirby Ward,HCL NURSING,HNSI0001252,1734.81
Department of Health,Leicestershire Partnership NHS Trust,10/02/23,NURSE - BAND 2 - AGENCY,Maple Ward,HCL NURSING,HNSI0001252,1583.11
Department of Health,Leicestershire Partnership NHS Trust,10/02/23,NURSE - BAND 5 - AGENCY,Maple Ward,HCL NURSING,HNSI0001252,2412.77
Department of Health,Leicestershire Partnership NHS Trust,10/02/23,Nurse - Band 6 -Agency,Mental Health Liaison Team,HCL NURSING,HNSI0001252,1773.46
Department of Health,Leicestershire Partnership NHS Trust,10/02/23,NURSE - BAND 2 - AGENCY,Mill Lodge,HCL NURSING,HNSI0001252,1052.46
Department of Health,Leicestershire Partnership NHS Trust,10/02/23,NURSE - BAND 5 - AGENCY,Mill Lodge,HCL NURSING,HNSI0001252,514.85
Department of Health,Leicestershire Partnership NHS Trust,10/02/23,NURSE - BAND 2 - AGENCY,Phoenix Ward (HPC),HCL NURSING,HNSI0001252,950.42
Department of Health,Leicestershire Partnership NHS Trust,10/02/23,NURSE - BAND 5 - AGENCY,Phoenix Ward (HPC),HCL NURSING,HNSI0001252,4048.86
Department of Health,Leicestershire Partnership NHS Trust,10/02/23,NURSE - BAND 2 - AGENCY,Place Of Safety Assessment Unit,HCL NURSING,HNSI0001252,987.30
Department of Health,Leicestershire Partnership NHS Trust,10/02/23,NURSE - BAND 5 - AGENCY,Place Of Safety Assessment Unit,HCL NURSING,HNSI0001252,4589.82
Department of Health,Leicestershire Partnership NHS Trust,10/02/23,NURSE - BAND 5 - AGENCY,Stewart House,HCL NURSING,HNSI0001252,449.54
Department of Health,Leicestershire Partnership NHS Trust,10/02/23,NURSE - BAND 2 - AGENCY,Sycamore (Willows),HCL NURSING,HNSI0001252,996.90
Department of Health,Leicestershire Partnership NHS Trust,10/02/23,NURSE - BAND 5 - AGENCY,Sycamore (Willows),HCL NURSING,HNSI0001252,1793.01
Department of Health,Leicestershire Partnership NHS Trust,10/02/23,NURSE - BAND 2 - AGENCY,Thornton Ward - Bradgate Unit,HCL NURSING,HNSI0001252,269.49
Department of Health,Leicestershire Partnership NHS Trust,10/02/23,NURSE - BAND 5 - AGENCY,Thornton Ward - Bradgate Unit,HCL NURSING,HNSI0001252,1348.62
Department of Health,Leicestershire Partnership NHS Trust,10/02/23,Nurse - Band 6 -Agency,AMH - Central Access Point,HCL NURSING,HNSI0001248,1247.52
Department of Health,Leicestershire Partnership NHS Trust,10/02/23,Nurse - Band 6 -Agency,Adult County South Leicestershire CMHT,HCL NURSING,HNSI0001248,1365.26
Department of Health,Leicestershire Partnership NHS Trust,10/02/23,NURSE - BAND 2 - AGENCY,Agnes Unit,HCL NURSING,HNSI0001248,26721.41
Department of Health,Leicestershire Partnership NHS Trust,10/02/23,NURSE - BAND 5 - AGENCY,Agnes Unit,HCL NURSING,HNSI0001248,28993.66
Department of Health,Leicestershire Partnership NHS Trust,10/02/23,NURSE - BAND 2 - AGENCY,Ashby Ward (Bradgate Unit),HCL NURSING,HNSI0001248,2970.92
Department of Health,Leicestershire Partnership NHS Trust,10/02/23,NURSE - BAND 5 - AGENCY,Ashby Ward (Bradgate Unit),HCL NURSING,HNSI0001248,11118.06
Department of Health,Leicestershire Partnership NHS Trust,10/02/23,NURSE - BAND 2 - AGENCY,Aston Ward Bradgate Unit (Prev Welford),HCL NURSING,HNSI0001248,4878.09
Department of Health,Leicestershire Partnership NHS Trust,10/02/23,NURSE - BAND 5 - AGENCY,Aston Ward Bradgate Unit (Prev Welford),HCL NURSING,HNSI0001248,2376.22
Department of Health,Leicestershire Partnership NHS Trust,10/02/23,NURSE - BAND 2 - AGENCY,Beaumont Ward - Bradgate Unit,HCL NURSING,HNSI0001248,1306.14
Department of Health,Leicestershire Partnership NHS Trust,10/02/23,NURSE - BAND 5 - AGENCY,Beaumont Ward - Bradgate Unit,HCL NURSING,HNSI0001248,10738.28
Department of Health,Leicestershire Partnership NHS Trust,10/02/23,NURSE - BAND 2 - AGENCY,Belvoir Psychiatric Intensive Care Unit,HCL NURSING,HNSI0001248,8959.66
Department of Health,Leicestershire Partnership NHS Trust,10/02/23,NURSE - BAND 5 - AGENCY,Belvoir Psychiatric Intensive Care Unit,HCL NURSING,HNSI0001248,4804.10
Department of Health,Leicestershire Partnership NHS Trust,10/02/23,NURSE - BAND 2 - AGENCY,Bosworth Ward - Bradgate Unit,HCL NURSING,HNSI0001248,4370.22
Department of Health,Leicestershire Partnership NHS Trust,10/02/23,NURSE - BAND 5 - AGENCY,Bosworth Ward - Bradgate Unit,HCL NURSING,HNSI0001248,7738.22
Department of Health,Leicestershire Partnership NHS Trust,10/02/23,NURSE - BAND 2 - AGENCY,Cedar (Willows),HCL NURSING,HNSI0001248,617.53
Department of Health,Leicestershire Partnership NHS Trust,10/02/23,NURSE - BAND 5 - AGENCY,Cedar (Willows),HCL NURSING,HNSI0001248,2311.92
Department of Health,Leicestershire Partnership NHS Trust,10/02/23,Nurse - Band 6 -Agency,City West CMHT MHSOP,HCL NURSING,HNSI0001248,1046.25
Department of Health,Leicestershire Partnership NHS Trust,10/02/23,NURSE - BAND 2 - AGENCY,Coleman Ward,HCL NURSING,HNSI0001248,1181.05
Department of Health,Leicestershire Partnership NHS Trust,10/02/23,NURSE - BAND 5 - AGENCY,Coleman Ward,HCL NURSING,HNSI0001248,6290.12
Department of Health,Leicestershire Partnership NHS Trust,10/02/23,NURSE - BAND 2 - AGENCY,Griffin Ward (HPC),HCL NURSING,HNSI0001248,5914.64
Department of Health,Leicestershire Partnership NHS Trust,10/02/23,NURSE - BAND 5 - AGENCY,Griffin Ward (HPC),HCL NURSING,HNSI0001248,7647.34
Department of Health,Leicestershire Partnership NHS Trust,10/02/23,NURSE - BAND 2 - AGENCY,Gwendolen Ward,HCL NURSING,HNSI0001248,1872.53
Department of Health,Leicestershire Partnership NHS Trust,10/02/23,NURSE - BAND 5 - AGENCY,Gwendolen Ward,HCL NURSING,HNSI0001248,4623.68
Department of Health,Leicestershire Partnership NHS Trust,10/02/23,NURSE - BAND 2 - AGENCY,Heather Ward,HCL NURSING,HNSI0001248,993.69
Department of Health,Leicestershire Partnership NHS Trust,10/02/23,NURSE - BAND 5 - AGENCY,Heather Ward,HCL NURSING,HNSI0001248,3217.05
Department of Health,Leicestershire Partnership NHS Trust,10/02/23,NURSE - BAND 2 - AGENCY,Kirby Ward,HCL NURSING,HNSI0001248,1042.28
Department of Health,Leicestershire Partnership NHS Trust,10/02/23,NURSE - BAND 5 - AGENCY,Kirby Ward,HCL NURSING,HNSI0001248,4102.45
Department of Health,Leicestershire Partnership NHS Trust,10/02/23,NURSE - BAND 2 - AGENCY,Maple Ward,HCL NURSING,HNSI0001248,920.58
Department of Health,Leicestershire Partnership NHS Trust,10/02/23,NURSE - BAND 5 - AGENCY,Maple Ward,HCL NURSING,HNSI0001248,1050.19
Department of Health,Leicestershire Partnership NHS Trust,10/02/23,Nurse - Band 6 -Agency,Mental Health Liaison Team,HCL NURSING,HNSI0001248,1773.46
Department of Health,Leicestershire Partnership NHS Trust,10/02/23,NURSE - BAND 2 - AGENCY,Mill Lodge,HCL NURSING,HNSI0001248,1408.48
Department of Health,Leicestershire Partnership NHS Trust,10/02/23,NURSE - BAND 5 - AGENCY,Mill Lodge,HCL NURSING,HNSI0001248,1489.74
Department of Health,Leicestershire Partnership NHS Trust,10/02/23,NURSE - BAND 2 - AGENCY,Phoenix Ward (HPC),HCL NURSING,HNSI0001248,531.07
Department of Health,Leicestershire Partnership NHS Trust,10/02/23,NURSE - BAND 5 - AGENCY,Phoenix Ward (HPC),HCL NURSING,HNSI0001248,4572.87
Department of Health,Leicestershire Partnership NHS Trust,10/02/23,NURSE - BAND 2 - AGENCY,Place Of Safety Assessment Unit,HCL NURSING,HNSI0001248,1232.80
Department of Health,Leicestershire Partnership NHS Trust,10/02/23,NURSE - BAND 5 - AGENCY,Place Of Safety Assessment Unit,HCL NURSING,HNSI0001248,5967.60
Department of Health,Leicestershire Partnership NHS Trust,10/02/23,NURSE - BAND 2 - AGENCY,Stewart House,HCL NURSING,HNSI0001248,265.84
Department of Health,Leicestershire Partnership NHS Trust,10/02/23,NURSE - BAND 2 - AGENCY,Sycamore (Willows),HCL NURSING,HNSI0001248,962.80
Department of Health,Leicestershire Partnership NHS Trust,10/02/23,NURSE - BAND 5 - AGENCY,Sycamore (Willows),HCL NURSING,HNSI0001248,5358.16
Department of Health,Leicestershire Partnership NHS Trust,10/02/23,NURSE - BAND 2 - AGENCY,Thornton Ward - Bradgate Unit,HCL NURSING,HNSI0001248,364.01
Department of Health,Leicestershire Partnership NHS Trust,10/02/23,NURSE - BAND 5 - AGENCY,Thornton Ward - Bradgate Unit,HCL NURSING,HNSI0001248,2454.13
Department of Health,Leicestershire Partnership NHS Trust,10/02/23,NURSE - BAND 2 - AGENCY,CAMHS Inpatient Service,HCL NURSING,HNSI0001250,18604.87
Department of Health,Leicestershire Partnership NHS Trust,10/02/23,NURSE - BAND 5 - AGENCY,CAMHS Inpatient Service,HCL NURSING,HNSI0001250,7124.49
Department of Health,Leicestershire Partnership NHS Trust,10/02/23,NURSE - BAND 2 - AGENCY,CAMHS Learning Disabilities and Outreach Team,HCL NURSING,HNSI0001250,1828.76
Department of Health,Leicestershire Partnership NHS Trust,10/02/23,Nurse - Band 6 -Agency,CAMHS Waiting List Monies,HCL NURSING,HNSI0001250,4972.53
Department of Health,Leicestershire Partnership NHS Trust,10/02/23,NURSE - BAND 2 - AGENCY,Welford Ward (Prev Langley),HCL NURSING,HNSI0001250,4087.98
Department of Health,Leicestershire Partnership NHS Trust,10/02/23,NURSE - BAND 5 - AGENCY,Welford Ward (Prev Langley),HCL NURSING,HNSI0001250,1363.70
Department of Health,Leicestershire Partnership NHS Trust,10/02/23,Nurse - Band 6 -Agency,CAMHS HUB / CAP,HCL WORKFORCE SOLUTIONS,HWSI0001563,6713.87
Department of Health,Leicestershire Partnership NHS Trust,10/02/23,Nurse - Band 6 -Agency,CAMHS Waiting List Monies,HCL WORKFORCE SOLUTIONS,HWSI0001563,18369.54
Department of Health,Leicestershire Partnership NHS Trust,10/02/23,Nurse - Band 6 -Agency,Crisis Response and Home Treatment,HCL WORKFORCE SOLUTIONS,HWSI0001563,2113.75
Department of Health,Leicestershire Partnership NHS Trust,10/02/23,Nurse - Band 6 -Agency,CAMHS HUB / CAP,HCL WORKFORCE SOLUTIONS,HWSI0001568,6569.15
Department of Health,Leicestershire Partnership NHS Trust,10/02/23,Nurse - Band 6 -Agency,CAMHS Waiting List Monies,HCL WORKFORCE SOLUTIONS,HWSI0001568,20230.65
Department of Health,Leicestershire Partnership NHS Trust,10/02/23,Nurse - Band 6 -Agency,Crisis Response and Home Treatment,HCL WORKFORCE SOLUTIONS,HWSI0001568,1246.36
Department of Health,Leicestershire Partnership NHS Trust,10/02/23,NURSE - BAND 2 - AGENCY,CAMHS Inpatient Service,HCL NURSING,HNSI0001254,19179.07
Department of Health,Leicestershire Partnership NHS Trust,10/02/23,NURSE - BAND 5 - AGENCY,CAMHS Inpatient Service,HCL NURSING,HNSI0001254,6670.28
Department of Health,Leicestershire Partnership NHS Trust,10/02/23,NURSE - BAND 2 - AGENCY,CAMHS Learning Disabilities and Outreach Team,HCL NURSING,HNSI0001254,1857.38
Department of Health,Leicestershire Partnership NHS Trust,10/02/23,Nurse - Band 6 -Agency,CAMHS Waiting List Monies,HCL NURSING,HNSI0001254,6790.85
Department of Health,Leicestershire Partnership NHS Trust,10/02/23,NURSE - BAND 2 - AGENCY,Welford Ward (Prev Langley),HCL NURSING,HNSI0001254,3006.91
Department of Health,Leicestershire Partnership NHS Trust,10/02/23,NURSE - BAND 5 - AGENCY,Welford Ward (Prev Langley),HCL NURSING,HNSI0001254,1527.41
Department of Health,Leicestershire Partnership NHS Trust,13/02/23,Legal Fees,Chief Executives Office,BROWNE JACOBSON LLP,IN-000138542,26639.40
Department of Health,Leicestershire Partnership NHS Trust,14/02/23,Healthcare Services / Recharges from Non-NHS Bodies,Adult Eating Disorder Collaborative,ELLERN MEDE MOORGATE,OTM0558,37200.00
Department of Health,Leicestershire Partnership NHS Trust,14/02/23,GP IT Expenditure,Area Team,DELL COMPUTERS,7402884860,35100.00
Department of Health,Leicestershire Partnership NHS Trust,15/02/23,Payroll Deductions -NEST EES Pensions,Balance Sheet Collection,NEST,P10DEDS-313/2023,15378.50
Department of Health,Leicestershire Partnership NHS Trust,15/02/23,Payroll Deductions -NEST ERS Pensions,Balance Sheet Collection,NEST,P10DEDS-313/2023,11527.87
Department of Health,Leicestershire Partnership NHS Trust,16/02/23,Computer License  Fees,Finance Department,VERSION 1,INVSOL016362,38084.10
Department of Health,Leicestershire Partnership NHS Trust,16/02/23,Leased / Hired Vehicles,Autism,LEASEPLAN,510926125,638.96
Department of Health,Leicestershire Partnership NHS Trust,16/02/23,Prep_ LT1y -Prepayments Lease Cars,Balance Sheet Collection,LEASEPLAN,510926125,29168.85
Department of Health,Leicestershire Partnership NHS Trust,16/02/23,Trade_Drs_LT1y -Charitable  Funds Contra Account,Balance Sheet Collection,LEASEPLAN,510926125,115.40
Department of Health,Leicestershire Partnership NHS Trust,16/02/23,Trade_Drs_LT1y -Lease Cars Invoicing Contrl Ac.,Balance Sheet Collection,LEASEPLAN,510926125,585.53
Department of Health,Leicestershire Partnership NHS Trust,16/02/23,VAT_Drs _ LT1y -VAT Contracted Out Services Input Tax,Balance Sheet Collection,LEASEPLAN,510926125,221.78
Department of Health,Leicestershire Partnership NHS Trust,16/02/23,Leased / Hired Vehicles,CAMHS Outpatients,LEASEPLAN,510926125,20.00
Department of Health,Leicestershire Partnership NHS Trust,16/02/23,Leased / Hired Vehicles,COVID 19,LEASEPLAN,510926125,472.36
Department of Health,Leicestershire Partnership NHS Trust,16/02/23,Leased / Hired Vehicles,City Planned Care - West,LEASEPLAN,510926125,611.16
Department of Health,Leicestershire Partnership NHS Trust,16/02/23,Leased / Hired Vehicles,Crisis Response and Home Treatment,LEASEPLAN,510926125,40.00
Department of Health,Leicestershire Partnership NHS Trust,16/02/23,Leased / Hired Vehicles,East Planned Care - Blaby/Lutterworth,LEASEPLAN,510926125,15.00
Department of Health,Leicestershire Partnership NHS Trust,16/02/23,Leased / Hired Vehicles,"East Planned Care - Melton,Syston,Rut - Therapy",LEASEPLAN,510926125,15.00
Department of Health,Leicestershire Partnership NHS Trust,16/02/23,Leased / Hired Vehicles,"East Planned Care - Melton,Syston,Rutland",LEASEPLAN,510926125,10.00
Department of Health,Leicestershire Partnership NHS Trust,16/02/23,Leased / Hired Vehicles,PIER Team - Early Intervention Services,LEASEPLAN,510926125,37.50
Department of Health,Leicestershire Partnership NHS Trust,16/02/23,Leased / Hired Vehicles,School Age Immunisation and Vaccinations,LEASEPLAN,510926125,1525.16
Department of Health,Leicestershire Partnership NHS Trust,16/02/23,Leased / Hired Vehicles,Stewart House,LEASEPLAN,510926125,15.00
Department of Health,Leicestershire Partnership NHS Trust,16/02/23,Leased / Hired Vehicles,Support Services (Learn Dis),LEASEPLAN,510926125,95.00
Department of Health,Leicestershire Partnership NHS Trust,16/02/23,Leased / Hired Vehicles,West Planned Care  - Hinckley Hub,LEASEPLAN,510926125,10.00
Department of Health,Leicestershire Partnership NHS Trust,17/02/23,WIP Project Not in BS - Buildings excl Dwellings,Work in Progress,TILBURY DOUGLAS CONSTRUCTION LTD,23020114,33168.94
Department of Health,Leicestershire Partnership NHS Trust,17/02/23,WIP Project Not in BS - Buildings excl Dwellings,Work in Progress,TILBURY DOUGLAS CONSTRUCTION LTD,23020120,27626.59
Department of Health,Leicestershire Partnership NHS Trust,17/02/23,WIP Project Not in BS - Buildings excl Dwellings,Work in Progress,TILBURY DOUGLAS CONSTRUCTION LTD,23020121,30560.48
Department of Health,Leicestershire Partnership NHS Trust,17/02/23,WIP Project Not in BS - Buildings excl Dwellings,Work in Progress,TILBURY DOUGLAS CONSTRUCTION LTD,23020122,155634.67
Department of Health,Leicestershire Partnership NHS Trust,17/02/23,WIP Project Not in BS - Buildings excl Dwellings,Work in Progress,TILBURY DOUGLAS CONSTRUCTION LTD,23020129,85564.88
Department of Health,Leicestershire Partnership NHS Trust,17/02/23,WIP Project Not in BS - Buildings excl Dwellings,Work in Progress,TILBURY DOUGLAS CONSTRUCTION LTD,23020132,102164.10
Department of Health,Leicestershire Partnership NHS Trust,17/02/23,WIP Project Not in BS - Buildings excl Dwellings,Work in Progress,TILBURY DOUGLAS CONSTRUCTION LTD,23020133,254314.86
Department of Health,Leicestershire Partnership NHS Trust,17/02/23,WIP Project Not in BS - Buildings excl Dwellings,Work in Progress,TILBURY DOUGLAS CONSTRUCTION LTD,23020134,172059.22
Department of Health,Leicestershire Partnership NHS Trust,17/02/23,Nurse - Band 6 -Agency,CAMHS HUB / CAP,HCL WORKFORCE SOLUTIONS,HWSI0001579,6938.04
Department of Health,Leicestershire Partnership NHS Trust,17/02/23,Nurse - Band 6 -Agency,CAMHS Waiting List Monies,HCL WORKFORCE SOLUTIONS,HWSI0001579,19356.77
Department of Health,Leicestershire Partnership NHS Trust,17/02/23,Nurse - Band 6 -Agency,Crisis Response and Home Treatment,HCL WORKFORCE SOLUTIONS,HWSI0001579,1970.46
Department of Health,Leicestershire Partnership NHS Trust,17/02/23,NURSE - BAND 5 - AGENCY,CAMHS Inpatient Service,HCL NURSING,HNSI0001263,27478.01
Department of Health,Leicestershire Partnership NHS Trust,17/02/23,NURSE - BAND 2 - AGENCY,CAMHS Learning Disabilities and Outreach Team,HCL NURSING,HNSI0001263,1866.30
Department of Health,Leicestershire Partnership NHS Trust,17/02/23,Nurse - Band 6 -Agency,CAMHS Waiting List Monies,HCL NURSING,HNSI0001263,7627.43
Department of Health,Leicestershire Partnership NHS Trust,17/02/23,NURSE - BAND 2 - AGENCY,Welford Ward (Prev Langley),HCL NURSING,HNSI0001263,3728.11
Department of Health,Leicestershire Partnership NHS Trust,17/02/23,NURSE - BAND 5 - AGENCY,Welford Ward (Prev Langley),HCL NURSING,HNSI0001263,4909.68
Department of Health,Leicestershire Partnership NHS Trust,17/02/23,Nurse - Band 6 -Agency,AMH - Central Access Point,HCL NURSING,HNSI0001261,1501.40
Department of Health,Leicestershire Partnership NHS Trust,17/02/23,Nurse - Band 6 -Agency,Adult County South Leicestershire CMHT,HCL NURSING,HNSI0001261,1365.26
Department of Health,Leicestershire Partnership NHS Trust,17/02/23,NURSE - BAND 2 - AGENCY,Agnes Unit,HCL NURSING,HNSI0001261,19237.69
Department of Health,Leicestershire Partnership NHS Trust,17/02/23,NURSE - BAND 5 - AGENCY,Agnes Unit,HCL NURSING,HNSI0001261,27423.85
Department of Health,Leicestershire Partnership NHS Trust,17/02/23,NURSE - BAND 2 - AGENCY,Ashby Ward (Bradgate Unit),HCL NURSING,HNSI0001261,5182.78
Department of Health,Leicestershire Partnership NHS Trust,17/02/23,NURSE - BAND 5 - AGENCY,Ashby Ward (Bradgate Unit),HCL NURSING,HNSI0001261,5945.77
Department of Health,Leicestershire Partnership NHS Trust,17/02/23,NURSE - BAND 2 - AGENCY,Aston Ward Bradgate Unit (Prev Welford),HCL NURSING,HNSI0001261,6237.54
Department of Health,Leicestershire Partnership NHS Trust,17/02/23,NURSE - BAND 5 - AGENCY,Aston Ward Bradgate Unit (Prev Welford),HCL NURSING,HNSI0001261,2887.90
Department of Health,Leicestershire Partnership NHS Trust,17/02/23,NURSE - BAND 2 - AGENCY,Beaumont Ward - Bradgate Unit,HCL NURSING,HNSI0001261,518.77
Department of Health,Leicestershire Partnership NHS Trust,17/02/23,NURSE - BAND 5 - AGENCY,Beaumont Ward - Bradgate Unit,HCL NURSING,HNSI0001261,9522.43
Department of Health,Leicestershire Partnership NHS Trust,17/02/23,NURSE - BAND 2 - AGENCY,Belvoir Psychiatric Intensive Care Unit,HCL NURSING,HNSI0001261,5526.95
Department of Health,Leicestershire Partnership NHS Trust,17/02/23,NURSE - BAND 5 - AGENCY,Belvoir Psychiatric Intensive Care Unit,HCL NURSING,HNSI0001261,6026.48
Department of Health,Leicestershire Partnership NHS Trust,17/02/23,NURSE - BAND 2 - AGENCY,Bosworth Ward - Bradgate Unit,HCL NURSING,HNSI0001261,1091.81
Department of Health,Leicestershire Partnership NHS Trust,17/02/23,NURSE - BAND 5 - AGENCY,Bosworth Ward - Bradgate Unit,HCL NURSING,HNSI0001261,4663.33
Department of Health,Leicestershire Partnership NHS Trust,17/02/23,NURSE - BAND 2 - AGENCY,Cedar (Willows),HCL NURSING,HNSI0001261,617.53
Department of Health,Leicestershire Partnership NHS Trust,17/02/23,NURSE - BAND 5 - AGENCY,Cedar (Willows),HCL NURSING,HNSI0001261,449.54
Department of Health,Leicestershire Partnership NHS Trust,17/02/23,Nurse - Band 6 -Agency,City West CMHT MHSOP,HCL NURSING,HNSI0001261,1046.25
Department of Health,Leicestershire Partnership NHS Trust,17/02/23,NURSE - BAND 2 - AGENCY,Coleman Ward,HCL NURSING,HNSI0001261,2462.10
Department of Health,Leicestershire Partnership NHS Trust,17/02/23,NURSE - BAND 5 - AGENCY,Coleman Ward,HCL NURSING,HNSI0001261,4818.29
Department of Health,Leicestershire Partnership NHS Trust,17/02/23,Nurse - Band 6 -Agency,Crisis Resolution,HCL NURSING,HNSI0001261,1556.54
Department of Health,Leicestershire Partnership NHS Trust,17/02/23,NURSE - BAND 2 - AGENCY,Griffin Ward (HPC),HCL NURSING,HNSI0001261,4824.33
Department of Health,Leicestershire Partnership NHS Trust,17/02/23,NURSE - BAND 5 - AGENCY,Griffin Ward (HPC),HCL NURSING,HNSI0001261,8626.01
Department of Health,Leicestershire Partnership NHS Trust,17/02/23,NURSE - BAND 2 - AGENCY,Gwendolen Ward,HCL NURSING,HNSI0001261,3121.13
Department of Health,Leicestershire Partnership NHS Trust,17/02/23,NURSE - BAND 5 - AGENCY,Gwendolen Ward,HCL NURSING,HNSI0001261,1774.38
Department of Health,Leicestershire Partnership NHS Trust,17/02/23,NURSE - BAND 2 - AGENCY,Heather Ward,HCL NURSING,HNSI0001261,3106.43
Department of Health,Leicestershire Partnership NHS Trust,17/02/23,NURSE - BAND 5 - AGENCY,Heather Ward,HCL NURSING,HNSI0001261,3706.41
Department of Health,Leicestershire Partnership NHS Trust,17/02/23,NURSE - BAND 2 - AGENCY,Kirby Ward,HCL NURSING,HNSI0001261,2461.38
Department of Health,Leicestershire Partnership NHS Trust,17/02/23,NURSE - BAND 5 - AGENCY,Kirby Ward,HCL NURSING,HNSI0001261,1052.57
Department of Health,Leicestershire Partnership NHS Trust,17/02/23,NURSE - BAND 2 - AGENCY,Maple Ward,HCL NURSING,HNSI0001261,861.53
Department of Health,Leicestershire Partnership NHS Trust,17/02/23,NURSE - BAND 5 - AGENCY,Maple Ward,HCL NURSING,HNSI0001261,1430.89
Department of Health,Leicestershire Partnership NHS Trust,17/02/23,Nurse - Band 6 -Agency,Mental Health Liaison Team,HCL NURSING,HNSI0001261,1773.46
Department of Health,Leicestershire Partnership NHS Trust,17/02/23,NURSE - BAND 2 - AGENCY,Mill Lodge,HCL NURSING,HNSI0001261,1077.95
Department of Health,Leicestershire Partnership NHS Trust,17/02/23,NURSE - BAND 5 - AGENCY,Mill Lodge,HCL NURSING,HNSI0001261,514.85
Department of Health,Leicestershire Partnership NHS Trust,17/02/23,NURSE - BAND 2 - AGENCY,Phoenix Ward (HPC),HCL NURSING,HNSI0001261,2431.32
Department of Health,Leicestershire Partnership NHS Trust,17/02/23,NURSE - BAND 5 - AGENCY,Phoenix Ward (HPC),HCL NURSING,HNSI0001261,1047.20
Department of Health,Leicestershire Partnership NHS Trust,17/02/23,NURSE - BAND 2 - AGENCY,Place Of Safety Assessment Unit,HCL NURSING,HNSI0001261,1510.52
Department of Health,Leicestershire Partnership NHS Trust,17/02/23,NURSE - BAND 5 - AGENCY,Place Of Safety Assessment Unit,HCL NURSING,HNSI0001261,2000.24
Department of Health,Leicestershire Partnership NHS Trust,17/02/23,NURSE - BAND 2 - AGENCY,Stewart House,HCL NURSING,HNSI0001261,550.36
Department of Health,Leicestershire Partnership NHS Trust,17/02/23,NURSE - BAND 2 - AGENCY,Sycamore (Willows),HCL NURSING,HNSI0001261,1633.21
Department of Health,Leicestershire Partnership NHS Trust,17/02/23,NURSE - BAND 5 - AGENCY,Sycamore (Willows),HCL NURSING,HNSI0001261,1624.06
Department of Health,Leicestershire Partnership NHS Trust,17/02/23,NURSE - BAND 2 - AGENCY,Thornton Ward - Bradgate Unit,HCL NURSING,HNSI0001261,569.85
Department of Health,Leicestershire Partnership NHS Trust,17/02/23,NURSE - BAND 5 - AGENCY,Thornton Ward - Bradgate Unit,HCL NURSING,HNSI0001261,2099.78
Department of Health,Leicestershire Partnership NHS Trust,20/02/23,Healthcare Services / Recharges from Non-NHS Bodies,CAMHS Outpatients,LEICESTER CITY FOOTBALL CLUB,1114,40000.00
Department of Health,Leicestershire Partnership NHS Trust,20/02/23,Photocopying,Estates & Facilities Central,LEXMARK INTERNATIONAL LTD,900650305049,34240.44
Department of Health,Leicestershire Partnership NHS Trust,20/02/23,Crs_NHS_LT1y -Resus Inventory Supplied.,Balance Sheet Collection,SUPPLY CHAIN CO LTD,1123262799,33124.23
Department of Health,Leicestershire Partnership NHS Trust,21/02/23,NURSE - BAND 5 - AGENCY,Beechwood Ward,HCL NURSING,HNSI0001262,9152.32
Department of Health,Leicestershire Partnership NHS Trust,21/02/23,NURSE - BAND 2 - AGENCY,CHS Surge Ward,HCL NURSING,HNSI0001262,7948.09
Department of Health,Leicestershire Partnership NHS Trust,21/02/23,NURSE - BAND 5 - AGENCY,CHS Surge Ward,HCL NURSING,HNSI0001262,6413.65
Department of Health,Leicestershire Partnership NHS Trust,21/02/23,NURSE - BAND 5 - AGENCY,City Planned Care - East,HCL NURSING,HNSI0001262,6575.03
Department of Health,Leicestershire Partnership NHS Trust,21/02/23,NURSE - BAND 5 - AGENCY,City Planned Care - West,HCL NURSING,HNSI0001262,15364.66
Department of Health,Leicestershire Partnership NHS Trust,21/02/23,NURSE - BAND 2 - AGENCY,Clarendon Ward,HCL NURSING,HNSI0001262,6828.63
Department of Health,Leicestershire Partnership NHS Trust,21/02/23,NURSE - BAND 5 - AGENCY,Clarendon Ward,HCL NURSING,HNSI0001262,2017.26
Department of Health,Leicestershire Partnership NHS Trust,21/02/23,NURSE - BAND 2 - AGENCY,Coalville Snibston Ward,HCL NURSING,HNSI0001262,3407.49
Department of Health,Leicestershire Partnership NHS Trust,21/02/23,NURSE - BAND 5 - AGENCY,Coalville Snibston Ward,HCL NURSING,HNSI0001262,2186.89
Department of Health,Leicestershire Partnership NHS Trust,21/02/23,NURSE - BAND 2 - AGENCY,Coalville Ward 2,HCL NURSING,HNSI0001262,2166.33
Department of Health,Leicestershire Partnership NHS Trust,21/02/23,NURSE - BAND 5 - AGENCY,Coalville Ward 2,HCL NURSING,HNSI0001262,514.85
Department of Health,Leicestershire Partnership NHS Trust,21/02/23,NURSE - BAND 2 - AGENCY,Dalgliesh Ward,HCL NURSING,HNSI0001262,4753.10
Department of Health,Leicestershire Partnership NHS Trust,21/02/23,NURSE - BAND 5 - AGENCY,Dalgliesh Ward,HCL NURSING,HNSI0001262,4575.74
Department of Health,Leicestershire Partnership NHS Trust,21/02/23,NURSE - BAND 5 - AGENCY,"East Planned Care - Oadby,Wigston & Harborough",HCL NURSING,HNSI0001262,984.08
Department of Health,Leicestershire Partnership NHS Trust,21/02/23,NURSE - BAND 2 - AGENCY,H&B Comm Hosp East Ward,HCL NURSING,HNSI0001262,13536.79
Department of Health,Leicestershire Partnership NHS Trust,21/02/23,NURSE - BAND 5 - AGENCY,H&B Comm Hosp East Ward,HCL NURSING,HNSI0001262,8852.09
Department of Health,Leicestershire Partnership NHS Trust,21/02/23,NURSE - BAND 2 - AGENCY,H&B Comm Hosp North Ward,HCL NURSING,HNSI0001262,5493.37
Department of Health,Leicestershire Partnership NHS Trust,21/02/23,NURSE - BAND 5 - AGENCY,H&B Comm Hosp North Ward,HCL NURSING,HNSI0001262,5087.84
Department of Health,Leicestershire Partnership NHS Trust,21/02/23,NURSE - BAND 2 - AGENCY,Lough Swithland Ward,HCL NURSING,HNSI0001262,2736.63
Department of Health,Leicestershire Partnership NHS Trust,21/02/23,NURSE - BAND 5 - AGENCY,Lough Swithland Ward,HCL NURSING,HNSI0001262,1612.05
Department of Health,Leicestershire Partnership NHS Trust,21/02/23,NURSE - BAND 2 - AGENCY,Rutland Ward Nursing,HCL NURSING,HNSI0001262,10086.84
Department of Health,Leicestershire Partnership NHS Trust,21/02/23,NURSE - BAND 5 - AGENCY,Rutland Ward Nursing,HCL NURSING,HNSI0001262,4669.08
Department of Health,Leicestershire Partnership NHS Trust,21/02/23,NURSE - BAND 2 - AGENCY,St Lukes Stroke Ward,HCL NURSING,HNSI0001262,4513.47
Department of Health,Leicestershire Partnership NHS Trust,21/02/23,NURSE - BAND 5 - AGENCY,St Lukes Stroke Ward,HCL NURSING,HNSI0001262,2638.43
Department of Health,Leicestershire Partnership NHS Trust,21/02/23,NURSE - BAND 2 - AGENCY,St Lukes Ward 3,HCL NURSING,HNSI0001262,1106.94
Department of Health,Leicestershire Partnership NHS Trust,21/02/23,NURSE - BAND 5 - AGENCY,St Lukes Ward 3,HCL NURSING,HNSI0001262,1714.44
Department of Health,Leicestershire Partnership NHS Trust,21/02/23,NURSE - BAND 5 - AGENCY,West Planned Care  - Charnwood Hub,HCL NURSING,HNSI0001262,370.27
Department of Health,Leicestershire Partnership NHS Trust,21/02/23,Gas,"Beaumont Leys Health Centre (P94, LPT)",TOTAL GAS & POWER LTD,292323960/23,1825.74
Department of Health,Leicestershire Partnership NHS Trust,21/02/23,Gas,"Bennion Centre (including Forest Grange Day Unit) (P8, LPT)",TOTAL GAS & POWER LTD,292323960/23,20057.26
Department of Health,Leicestershire Partnership NHS Trust,21/02/23,Gas,"Bradgate Unit (including Glenvale day Unit) (P7, LPT)",TOTAL GAS & POWER LTD,292323960/23,35994.62
Department of Health,Leicestershire Partnership NHS Trust,21/02/23,Gas,Bridge Park Plaza - First Floor (LPT),TOTAL GAS & POWER LTD,292323960/23,4610.96
Department of Health,Leicestershire Partnership NHS Trust,21/02/23,Gas,"Bridge Park Road - Units 2 and 3 (P148, LPT)",TOTAL GAS & POWER LTD,292323960/23,531.88
Department of Health,Leicestershire Partnership NHS Trust,21/02/23,Gas,"Coalville Community Hospital (P138, LPT)",TOTAL GAS & POWER LTD,292323960/23,23752.16
Department of Health,Leicestershire Partnership NHS Trust,21/02/23,Gas,"Coalville Health Centre (P121, LPT)",TOTAL GAS & POWER LTD,292323960/23,1880.20
Department of Health,Leicestershire Partnership NHS Trust,21/02/23,Gas,"Evington Centre (P6, LPT)",TOTAL GAS & POWER LTD,292323960/23,3365.84
Department of Health,Leicestershire Partnership NHS Trust,21/02/23,Gas,"Farm Lodge (P34, LPT)",TOTAL GAS & POWER LTD,292323960/23,517.54
Department of Health,Leicestershire Partnership NHS Trust,21/02/23,Gas,"Feilding Palmer Hospital (Lutterworth) (P131, LPT)",TOTAL GAS & POWER LTD,292323960/23,4161.47
Department of Health,Leicestershire Partnership NHS Trust,21/02/23,Gas,"Frith Cottages 3 & 4 (P36, LPT)",TOTAL GAS & POWER LTD,292323960/23,519.10
Department of Health,Leicestershire Partnership NHS Trust,21/02/23,Gas,HIS,TOTAL GAS & POWER LTD,292323960/23,568.30
Department of Health,Leicestershire Partnership NHS Trust,21/02/23,Gas,"Hawthorne Centre - Coalville (P14, LPT)",TOTAL GAS & POWER LTD,292323960/23,1332.43
Department of Health,Leicestershire Partnership NHS Trust,21/02/23,Gas,"Hinckley and Bosworth Community Hospital (Sunnyside) (P133, LPT)",TOTAL GAS & POWER LTD,292323960/23,15510.79
Department of Health,Leicestershire Partnership NHS Trust,21/02/23,Gas,"Hynca Lodge (P33, LPT)",TOTAL GAS & POWER LTD,292323960/23,1337.23
Department of Health,Leicestershire Partnership NHS Trust,21/02/23,Gas,"LGH - Gwendolen House (P4, LPT)",TOTAL GAS & POWER LTD,292323960/23,5034.45
Department of Health,Leicestershire Partnership NHS Trust,21/02/23,Gas,"Loughborough Hospital (P136, LPT)",TOTAL GAS & POWER LTD,292323960/23,43966.64
Department of Health,Leicestershire Partnership NHS Trust,21/02/23,Gas,Mawson House (LPT),TOTAL GAS & POWER LTD,292323960/23,1862.32
Department of Health,Leicestershire Partnership NHS Trust,21/02/23,Gas,"Mett Centre (P49, LPT)",TOTAL GAS & POWER LTD,292323960/23,792.34
Department of Health,Leicestershire Partnership NHS Trust,21/02/23,Gas,"Narborough Health Centre (P117, LPT)",TOTAL GAS & POWER LTD,292323960/23,1486.58
Department of Health,Leicestershire Partnership NHS Trust,21/02/23,Gas,"Neville Centre - LGH (was DSC) (P147, LPT)",TOTAL GAS & POWER LTD,292323960/23,2893.61
Department of Health,Leicestershire Partnership NHS Trust,21/02/23,Gas,"OSL House (P54, LPT)",TOTAL GAS & POWER LTD,292323960/23,1980.66
Department of Health,Leicestershire Partnership NHS Trust,21/02/23,Gas,"Orchard Resource Centre (P15, LPT)",TOTAL GAS & POWER LTD,292323960/23,2022.94
Department of Health,Leicestershire Partnership NHS Trust,21/02/23,Gas,"Rutland Memorial Hospital (P134, LPT)",TOTAL GAS & POWER LTD,292323960/23,838.49
Department of Health,Leicestershire Partnership NHS Trust,21/02/23,Gas,"Shepshed Health Centre (P123, LPT)",TOTAL GAS & POWER LTD,292323960/23,1798.22
Department of Health,Leicestershire Partnership NHS Trust,21/02/23,Gas,"Springfield Road Health Centre (P92, LPT)",TOTAL GAS & POWER LTD,292323960/23,1693.85
Department of Health,Leicestershire Partnership NHS Trust,21/02/23,Gas,"Stewart House (P61, LPT)",TOTAL GAS & POWER LTD,292323960/23,7947.14
Department of Health,Leicestershire Partnership NHS Trust,21/02/23,Gas,"Swithland House - London Road 352 (P44, LPT)",TOTAL GAS & POWER LTD,292323960/23,2736.62
Department of Health,Leicestershire Partnership NHS Trust,21/02/23,Gas,"The Agnes Unit (AKA Assessment and Treatment Centre) (P85, LPT)",TOTAL GAS & POWER LTD,292323960/23,9822.01
Department of Health,Leicestershire Partnership NHS Trust,21/02/23,Gas,The Beacon,TOTAL GAS & POWER LTD,292323960/23,3488.65
Department of Health,Leicestershire Partnership NHS Trust,21/02/23,Gas,"The Cedars (P19, LPT)",TOTAL GAS & POWER LTD,292323960/23,939.60
Department of Health,Leicestershire Partnership NHS Trust,21/02/23,Gas,"The Grange 1 (P4, LPT)",TOTAL GAS & POWER LTD,292323960/23,803.36
Department of Health,Leicestershire Partnership NHS Trust,21/02/23,Gas,"The Grange 2 (P41, LPT)",TOTAL GAS & POWER LTD,292323960/23,605.03
Department of Health,Leicestershire Partnership NHS Trust,21/02/23,Gas,"The Willows - Cordelia Close (P22, LPT)",TOTAL GAS & POWER LTD,292323960/23,8812.92
Department of Health,Leicestershire Partnership NHS Trust,21/02/23,Gas,"Valentine Centre (P3, LPT)",TOTAL GAS & POWER LTD,292323960/23,4263.88
Department of Health,Leicestershire Partnership NHS Trust,21/02/23,Gas,"Westcotes Group -Westcotes House (P78, LPT)",TOTAL GAS & POWER LTD,292323960/23,3294.65
Department of Health,Leicestershire Partnership NHS Trust,21/02/23,Gas,"Winstanley Drive Health Centre (P8, LPT)",TOTAL GAS & POWER LTD,292323960/23,1430.94
Department of Health,Leicestershire Partnership NHS Trust,21/02/23,Water & Sewerage Charges,"Beaumont Leys Health Centre (P94, LPT)",WATER PLUS,0865005329/INV01253113,268.42
Department of Health,Leicestershire Partnership NHS Trust,21/02/23,Water & Sewerage Charges,Bridge Park Road (Unit C18) (LPT),WATER PLUS,0865005329/INV01253113,62.12
Department of Health,Leicestershire Partnership NHS Trust,21/02/23,Water & Sewerage Charges,"Bridge Park Road - Units 2 and 3 (P148, LPT)",WATER PLUS,0865005329/INV01253113,871.20
Department of Health,Leicestershire Partnership NHS Trust,21/02/23,Water & Sewerage Charges,"Coalville Community Hospital (P138, LPT)",WATER PLUS,0865005329/INV01253113,4311.86
Department of Health,Leicestershire Partnership NHS Trust,21/02/23,Water & Sewerage Charges,"Coalville Health Centre (P121, LPT)",WATER PLUS,0865005329/INV01253113,518.12
Department of Health,Leicestershire Partnership NHS Trust,21/02/23,Water & Sewerage Charges,"Evington Centre (P6, LPT)",WATER PLUS,0865005329/INV01253113,3572.88
Department of Health,Leicestershire Partnership NHS Trust,21/02/23,Water & Sewerage Charges,"Feilding Palmer Hospital (Lutterworth) (P131, LPT)",WATER PLUS,0865005329/INV01253113,56.24
Department of Health,Leicestershire Partnership NHS Trust,21/02/23,Water & Sewerage Charges,HIS,WATER PLUS,0865005329/INV01253113,203.85
Department of Health,Leicestershire Partnership NHS Trust,21/02/23,Water & Sewerage Charges,Hinckley & District Hospital (PROPCO),WATER PLUS,0865005329/INV01253113,90.74
Department of Health,Leicestershire Partnership NHS Trust,21/02/23,Water & Sewerage Charges,"Hinckley and Bosworth Community Hospital (Sunnyside) (P133, LPT)",WATER PLUS,0865005329/INV01253113,3173.66
Department of Health,Leicestershire Partnership NHS Trust,21/02/23,Water & Sewerage Charges,"Hynca Lodge (P33, LPT)",WATER PLUS,0865005329/INV01253113,393.07
Department of Health,Leicestershire Partnership NHS Trust,21/02/23,Water & Sewerage Charges,Linnaeus Nursery - Cordelia Close,WATER PLUS,0865005329/INV01253113,112.60
Department of Health,Leicestershire Partnership NHS Trust,21/02/23,Water & Sewerage Charges,"Loughborough Hospital (P136, LPT)",WATER PLUS,0865005329/INV01253113,5699.65
Department of Health,Leicestershire Partnership NHS Trust,21/02/23,Water & Sewerage Charges,"Narborough Health Centre (P117, LPT)",WATER PLUS,0865005329/INV01253113,167.70
Department of Health,Leicestershire Partnership NHS Trust,21/02/23,Water & Sewerage Charges,"OSL House (P54, LPT)",WATER PLUS,0865005329/INV01253113,554.92
Department of Health,Leicestershire Partnership NHS Trust,21/02/23,Water & Sewerage Charges,"Orchard Resource Centre (P15, LPT)",WATER PLUS,0865005329/INV01253113,788.76
Department of Health,Leicestershire Partnership NHS Trust,21/02/23,Water & Sewerage Charges,"Prince Philip House (P96, LPT)",WATER PLUS,0865005329/INV01253113,429.26
Department of Health,Leicestershire Partnership NHS Trust,21/02/23,Water & Sewerage Charges,Rothesay -  London Road 352A (LPT),WATER PLUS,0865005329/INV01253113,612.82
Department of Health,Leicestershire Partnership NHS Trust,21/02/23,Water & Sewerage Charges,"Rutland Memorial Hospital (P134, LPT)",WATER PLUS,0865005329/INV01253113,446.49
Department of Health,Leicestershire Partnership NHS Trust,21/02/23,Water & Sewerage Charges,"Shepshed Health Centre (P123, LPT)",WATER PLUS,0865005329/INV01253113,583.40
Department of Health,Leicestershire Partnership NHS Trust,21/02/23,Water & Sewerage Charges,"Springfield Road Health Centre (P92, LPT)",WATER PLUS,0865005329/INV01253113,535.10
Department of Health,Leicestershire Partnership NHS Trust,21/02/23,Water & Sewerage Charges,"Stewart House (P61, LPT)",WATER PLUS,0865005329/INV01253113,2199.00
Department of Health,Leicestershire Partnership NHS Trust,21/02/23,Water & Sewerage Charges,"Swithland House - London Road 352 (P44, LPT)",WATER PLUS,0865005329/INV01253113,201.66
Department of Health,Leicestershire Partnership NHS Trust,21/02/23,Water & Sewerage Charges,"The Agnes Unit (AKA Assessment and Treatment Centre) (P85, LPT)",WATER PLUS,0865005329/INV01253113,1611.72
Department of Health,Leicestershire Partnership NHS Trust,21/02/23,Water & Sewerage Charges,"The Cedars (P19, LPT)",WATER PLUS,0865005329/INV01253113,182.54
Department of Health,Leicestershire Partnership NHS Trust,21/02/23,Water & Sewerage Charges,"The Grange 1 (P4, LPT)",WATER PLUS,0865005329/INV01253113,84.76
Department of Health,Leicestershire Partnership NHS Trust,21/02/23,Water & Sewerage Charges,"The Grange 2 (P41, LPT)",WATER PLUS,0865005329/INV01253113,135.70
Department of Health,Leicestershire Partnership NHS Trust,21/02/23,Water & Sewerage Charges,"The Willows - Cordelia Close (P22, LPT)",WATER PLUS,0865005329/INV01253113,2895.96
Department of Health,Leicestershire Partnership NHS Trust,21/02/23,Water & Sewerage Charges,"Westcotes Group -Westcotes House (P78, LPT)",WATER PLUS,0865005329/INV01253113,166.44
Department of Health,Leicestershire Partnership NHS Trust,21/02/23,Water & Sewerage Charges,Westcotes Group – Artemis House,WATER PLUS,0865005329/INV01253113,364.06
Department of Health,Leicestershire Partnership NHS Trust,21/02/23,Mobile Telephone Rental / Calls,Specific Unit Budget Reserves,VODAFONE CORPORATE LTD,FEB2023INVOICES,69071.41
Department of Health,Leicestershire Partnership NHS Trust,21/02/23,Med GP Trainees,Medical Trainees,ST.HELENS & KNOWSLEY NHS TRUST,16819886,75000.00
Department of Health,Leicestershire Partnership NHS Trust,21/02/23,Services / Recharges from NHS Trusts,Inter Unit I & E Distribution,UHL NHS TRUST (RWE),L0268107,39754.42
Department of Health,Leicestershire Partnership NHS Trust,22/02/23,Services / Recharges from NHS Trusts,Inter Unit I & E Distribution,UHL NHS TRUST (RWE),L0268112,158352.83
Department of Health,Leicestershire Partnership NHS Trust,22/02/23,Building & Engineering Equipment Maintenance / Repairs,Estates & Maintenance Team,BELLROCK PROPERTY FACILITIES MANGEMENT LTD,1096811,38451.84
Department of Health,Leicestershire Partnership NHS Trust,22/02/23,Cytogenetic Testing,Community Paediatrics,UHL NHS TRUST (RWE),L0268106,42179.45
Department of Health,Leicestershire Partnership NHS Trust,22/02/23,CHP Estates Management,Merlyn Vaz Centre (CHP),COMM HLTH PARTNERSHIPS LTD,0060282899,74865.22
Department of Health,Leicestershire Partnership NHS Trust,22/02/23,Building & Engineering Equipment Maintenance / Repairs,Estates & Maintenance Team,DC COMMS LTD,13144,22904.40
Department of Health,Leicestershire Partnership NHS Trust,22/02/23,External Contracts,The Beacon,DC COMMS LTD,13144,10551.60
Department of Health,Leicestershire Partnership NHS Trust,23/02/23,NURSE - BAND 2 - AGENCY,Beechwood Ward,HCL NURSING,HNSI0001253,5420.92
Department of Health,Leicestershire Partnership NHS Trust,23/02/23,NURSE - BAND 5 - AGENCY,Beechwood Ward,HCL NURSING,HNSI0001253,4851.11
Department of Health,Leicestershire Partnership NHS Trust,23/02/23,NURSE - BAND 2 - AGENCY,CHS Surge Ward,HCL NURSING,HNSI0001253,8403.93
Department of Health,Leicestershire Partnership NHS Trust,23/02/23,NURSE - BAND 5 - AGENCY,CHS Surge Ward,HCL NURSING,HNSI0001253,4950.04
Department of Health,Leicestershire Partnership NHS Trust,23/02/23,NURSE - BAND 5 - AGENCY,City Planned Care - East,HCL NURSING,HNSI0001253,9554.50
Department of Health,Leicestershire Partnership NHS Trust,23/02/23,NURSE - BAND 5 - AGENCY,City Planned Care - West,HCL NURSING,HNSI0001253,12997.50
Department of Health,Leicestershire Partnership NHS Trust,23/02/23,NURSE - BAND 2 - AGENCY,Clarendon Ward,HCL NURSING,HNSI0001253,4819.37
Department of Health,Leicestershire Partnership NHS Trust,23/02/23,NURSE - BAND 5 - AGENCY,Clarendon Ward,HCL NURSING,HNSI0001253,449.54
Department of Health,Leicestershire Partnership NHS Trust,23/02/23,NURSE - BAND 2 - AGENCY,Coalville Snibston Ward,HCL NURSING,HNSI0001253,1959.99
Department of Health,Leicestershire Partnership NHS Trust,23/02/23,NURSE - BAND 5 - AGENCY,Coalville Snibston Ward,HCL NURSING,HNSI0001253,1807.20
Department of Health,Leicestershire Partnership NHS Trust,23/02/23,NURSE - BAND 2 - AGENCY,Coalville Ward 2,HCL NURSING,HNSI0001253,3181.89
Department of Health,Leicestershire Partnership NHS Trust,23/02/23,NURSE - BAND 5 - AGENCY,Coalville Ward 2,HCL NURSING,HNSI0001253,2059.40
Department of Health,Leicestershire Partnership NHS Trust,23/02/23,NURSE - BAND 2 - AGENCY,Dalgliesh Ward,HCL NURSING,HNSI0001253,2429.23
Department of Health,Leicestershire Partnership NHS Trust,23/02/23,NURSE - BAND 5 - AGENCY,Dalgliesh Ward,HCL NURSING,HNSI0001253,4183.32
Department of Health,Leicestershire Partnership NHS Trust,23/02/23,NURSE - BAND 5 - AGENCY,"East Planned Care - Oadby,Wigston & Harborough",HCL NURSING,HNSI0001253,1515.13
Department of Health,Leicestershire Partnership NHS Trust,23/02/23,NURSE - BAND 2 - AGENCY,H&B Comm Hosp East Ward,HCL NURSING,HNSI0001253,10237.66
Department of Health,Leicestershire Partnership NHS Trust,23/02/23,NURSE - BAND 5 - AGENCY,H&B Comm Hosp East Ward,HCL NURSING,HNSI0001253,10092.93
Department of Health,Leicestershire Partnership NHS Trust,23/02/23,NURSE - BAND 2 - AGENCY,H&B Comm Hosp North Ward,HCL NURSING,HNSI0001253,6704.28
Department of Health,Leicestershire Partnership NHS Trust,23/02/23,NURSE - BAND 5 - AGENCY,H&B Comm Hosp North Ward,HCL NURSING,HNSI0001253,3101.28
Department of Health,Leicestershire Partnership NHS Trust,23/02/23,NURSE - BAND 2 - AGENCY,Lough Swithland Ward,HCL NURSING,HNSI0001253,1876.18
Department of Health,Leicestershire Partnership NHS Trust,23/02/23,NURSE - BAND 5 - AGENCY,Lough Swithland Ward,HCL NURSING,HNSI0001253,3660.95
Department of Health,Leicestershire Partnership NHS Trust,23/02/23,NURSE - BAND 2 - AGENCY,Rutland Ward Nursing,HCL NURSING,HNSI0001253,5544.42
Department of Health,Leicestershire Partnership NHS Trust,23/02/23,NURSE - BAND 5 - AGENCY,Rutland Ward Nursing,HCL NURSING,HNSI0001253,3813.94
Department of Health,Leicestershire Partnership NHS Trust,23/02/23,NURSE - BAND 2 - AGENCY,St Lukes Stroke Ward,HCL NURSING,HNSI0001253,3557.00
Department of Health,Leicestershire Partnership NHS Trust,23/02/23,NURSE - BAND 5 - AGENCY,St Lukes Stroke Ward,HCL NURSING,HNSI0001253,1309.54
Department of Health,Leicestershire Partnership NHS Trust,23/02/23,NURSE - BAND 2 - AGENCY,St Lukes Ward 3,HCL NURSING,HNSI0001253,3864.24
Department of Health,Leicestershire Partnership NHS Trust,24/02/23,Computer Hardware,HIS External Recharge,DELL COMPUTERS,7402892125,26776.80
Department of Health,Leicestershire Partnership NHS Trust,27/02/23,FP10'S,Adult City Drugs,NHS BUS SERVICES AUTHORITY,1000076422,34155.76
Department of Health,Leicestershire Partnership NHS Trust,27/02/23,FP10'S,Adult County Drugs,NHS BUS SERVICES AUTHORITY,1000076422,28857.78
Department of Health,Leicestershire Partnership NHS Trust,27/02/23,FP10'S,CAMHS Outpatients,NHS BUS SERVICES AUTHORITY,1000076422,15763.99
Department of Health,Leicestershire Partnership NHS Trust,27/02/23,FP10'S,Community Paediatrics,NHS BUS SERVICES AUTHORITY,1000076422,1978.94
Department of Health,Leicestershire Partnership NHS Trust,27/02/23,FP10'S,Dementia Related Drugs and Investigations,NHS BUS SERVICES AUTHORITY,1000076422,7702.29
Department of Health,Leicestershire Partnership NHS Trust,27/02/23,FP10'S,Eating Disorders Outpatient Service,NHS BUS SERVICES AUTHORITY,1000076422,1237.09
Department of Health,Leicestershire Partnership NHS Trust,27/02/23,FP10'S,Forensic Services - Community,NHS BUS SERVICES AUTHORITY,1000076422,81.20
Department of Health,Leicestershire Partnership NHS Trust,27/02/23,FP10'S,Mental Health Liaison Team,NHS BUS SERVICES AUTHORITY,1000076422,48.38
Department of Health,Leicestershire Partnership NHS Trust,27/02/23,FP10'S,PIER Team - Early Intervention Services,NHS BUS SERVICES AUTHORITY,1000076422,24585.38
Department of Health,Leicestershire Partnership NHS Trust,27/02/23,FP10'S,Snr Med Staff (Inc Med Reps),NHS BUS SERVICES AUTHORITY,1000076422,4559.28
Department of Health,Leicestershire Partnership NHS Trust,27/02/23,Rent,"OSL House (P54, LPT)",CABOT TRUSTEES LTD,072,41700.00
Department of Health,Leicestershire Partnership NHS Trust,27/02/23,Crs_NHS_LT1y -Resus Inventory Supplied.,Balance Sheet Collection,SUPPLY CHAIN CO LTD,1123270244,32246.01
Department of Health,Leicestershire Partnership NHS Trust,27/02/23,Rent,Bridge Park Plaza - First Floor (LPT),FISHER HARG PROCT LTD,800907,80507.52
Department of Health,Leicestershire Partnership NHS Trust,27/02/23,Building & Engineering Equipment Maintenance / Repairs,Estates & Maintenance Team,DC COMMS LTD,13146,33552.00
Department of Health,Leicestershire Partnership NHS Trust,27/02/23,Healthcare Services / Recharges from Non-NHS Bodies,Adult Eating Disorder Collaborative,ELLERN MEDE MOORGATE,OTM0496,34100.00
